bitfinex-derivatives/quotes_ETHF0:USTF0_20250828
["timestamp","ask_amount","ask_price","bid_price","bid_amount"]
[1756356233900,23.8031,4567.7,4567.6,1.6543]
[1756356234299,24.2224,4567.7,4567.6,1.6543]
[1756356234895,0.4193,4568.2,4567.6,2.04834]
[1756356235099,0.7826,4568.2,4568.1,1.0545]
[1756356235296,21.0166,4568.2,4568.1,1.0545]
[1756356235493,31.536,4568.4,4568.1,0.6748]
[1756356235689,20.233,4568.4,4568.3,0.6748]
[1756356235889,20.233,4568.4,4568.3,1.6543]
[1756356236494,20.233,4568.4,4568.3,4.8621]
[1756356237202,20.233,4568.4,4568.3,5.03673041]
[1756356237400,0.4193,4568.8,4568.7,0.39395]
[1756356237694,11.1586,4568.8,4568.7,2.04825]
[1756356237899,10.6396,4568.8,4568.7,2.04825]
[1756356238103,11.1586,4568.8,4568.7,2.04825]
[1756356238703,10.376,4568.8,4568.7,2.04825]
[1756356238906,11.1586,4568.8,4568.7,2.04825]
[1756356239499,11.1586,4568.8,4568.7,1.63545]
[1756356239702,11.1586,4568.8,4568.7,2.04825]
[1756356240508,11.1586,4568.8,4568.7,1.63545]
[1756356240999,10.376,4568.8,4568.7,2.04825]
[1756356241401,10.376,4568.8,4568.7,3.42005535]
[1756356242302,34.7448,4569.9,4568.9,2.04824]
[1756356242303,0.26732091,4569.0,4568.9,2.04824]
[1756356242498,0.78632091,4569.0,4568.9,4.4493]
[1756356242695,21.11362091,4569.0,4568.9,3.4858]
[1756356243098,0.8449,4568.7,4568.6,0.67196]
[1756356243905,0.8449,4568.7,4568.6,2.04826]
[1756356243906,0.7826,4568.7,4568.6,2.04826]
[1756356245905,0.2636,4568.7,4568.6,2.04826]
[1756356246105,20.26872091,4569.0,4568.9,1.06874]
[1756356246106,20.63202091,4569.0,4568.9,1.06874]
[1756356246400,21.05132091,4569.0,4568.9,2.04824]
[1756356247195,21.05132091,4569.0,4568.9,1.2415]
[1756356247505,21.11362091,4569.0,4568.9,0.278]
[1756356247902,21.05132091,4569.0,4568.6,0.278]
[1756356248117,0.848,4568.7,4568.6,0.278]
[1756356248407,0.7845,4568.7,4568.6,0.9528]
[1756356248707,20.26872091,4569.0,4568.9,2.04824]
[1756356249906,20.26872091,4569.0,4568.9,5.25604]
[1756356250509,0.00372091,4569.0,4568.9,5.25604]
[1756356251202,0.3636,4570.2,4570.1,1.0876]
[1756356251402,0.4652,4570.2,4570.1,1.2415]
[1756356251800,0.4652,4570.2,4570.1,1.6543]
[1756356253210,0.8845,4570.2,4570.1,1.6543]
[1756356254706,0.8845,4570.2,4570.1,1.2415]
[1756356254910,0.948,4570.2,4570.1,0.278]
[1756356255214,0.8845,4570.2,4570.1,0.7702]
[1756356255509,0.8845,4570.2,4570.1,0.4815]
[1756356255710,0.3652,4569.9,4569.8,0.278]
[1756356256009,0.848,4569.9,4569.8,0.278]
[1756356257215,0.7845,4569.9,4569.8,0.278]
[1756356257603,0.7845,4569.9,4569.8,1.2415]
[1756356257802,0.7845,4569.9,4569.8,1.6543]
[1756356259713,0.7845,4569.9,4569.8,1.2415]
[1756356260102,0.7845,4569.9,4569.8,1.6543]
[1756356260509,0.7845,4569.9,4569.8,1.2415]
[1756356261618,0.7845,4569.9,4569.8,1.23111892]
[1756356263018,0.1948,4569.0,4568.9,0.4072]
[1756356263221,19.2315,4569.0,4567.9,3.2078]
[1756356263516,19.2315,4569.0,4568.3,0.39398]
[1756356263717,19.2315,4569.0,4568.4,0.3071]
[1756356263917,0.8755,4568.5,4568.4,1.3621]
[1756356264116,3.2078,4569.1,4568.8,0.39394]
[1756356264320,4.4857,4569.7,4569.6,1.3621]
[1756356265120,31.522,4569.9,4569.8,0.39386]
[1756356265421,31.7168,4569.9,4569.8,1.6408]
[1756356265621,32.7999,4569.9,4569.8,1.6408]
[1756356266021,32.7999,4569.9,4569.8,0.9549]
[1756356266222,32.7999,4569.9,4569.8,0.4922]
[1756356266425,32.7999,4569.9,4569.8,0.3071]
[1756356266614,32.873,4569.9,4569.8,0.3071]
[1756356266813,0.2854,4569.8,4569.1,0.3071]
[1756356267020,1.2779,4569.2,4569.1,1.6408]
[1756356267226,21.5629,4569.2,4569.1,1.6408]
[1756356267526,21.7447926,4569.2,4569.1,1.6408]
[1756356267919,21.7447926,4569.2,4569.1,0.9549]
[1756356268313,21.0640926,4569.2,4569.1,0.6775]
[1756356268518,21.7447926,4569.2,4569.1,0.4922]
[1756356268919,21.7447926,4569.2,4569.1,0.3071]
[1756356269527,21.7447926,4569.2,4569.1,0.4922]
[1756356270327,21.7447926,4569.2,4569.1,0.9549]
[1756356270520,21.7447926,4569.2,4569.1,1.6408]
[1756356271329,21.7447926,4569.2,4569.1,1.2336]
[1756356271729,21.7447926,4569.2,4569.1,0.9549]
[1756356271932,21.7447926,4569.2,4569.1,0.3071]
[1756356272127,21.8178926,4569.2,4569.1,0.3071]
[1756356272325,0.8626,4568.9,4568.8,0.3071]
[1756356272630,1.4597926,4568.9,4568.8,0.3071]
[1756356272828,1.5328926,4568.9,4568.8,0.3071]
[1756356273232,0.5772,4568.9,4568.5,0.3071]
[1756356273525,1.2779,4568.5,4568.4,3.2078]
[1756356273728,21.02116461,4568.5,4567.9,3.2078]
[1756356274030,1.2779,4568.2,4568.1,1.6408]
[1756356274233,1.45986461,4568.2,4568.1,1.6408]
[1756356274424,1.45986461,4568.2,4568.1,0.9549]
[1756356274732,1.45986461,4568.2,4568.1,0.4922]
[1756356274925,1.45986461,4568.2,4568.1,0.9549]
[1756356275223,1.45986461,4568.2,4568.1,1.2336]
[1756356275428,1.45986461,4568.2,4568.1,1.6408]
[1756356275824,0.18196461,4568.2,4568.1,1.6408]
[1756356276025,11.07296461,4568.2,4568.1,5.6408]
[1756356276932,11.07283929,4568.2,4568.1,5.6408]
[1756356277825,12.35073929,4568.2,4568.1,1.6408]
[1756356278228,12.35073929,4568.2,4568.1,0.9549]
[1756356278820,12.35073929,4568.2,4568.1,0.3071]
[1756356280027,12.42383929,4568.2,4568.1,0.3071]
[1756356280234,12.35073929,4568.2,4568.1,0.3071]
[1756356280530,0.5772,4567.9,4567.7,0.3071]
[1756356280732,0.8626,4567.4,4567.3,1.2336]
[1756356280928,1.45973929,4567.4,4567.3,1.6408]
[1756356281627,1.45973929,4567.4,4567.3,0.3071]
[1756356282528,1.53283929,4567.4,4567.3,0.3071]
[1756356283028,0.75903929,4567.4,4567.2,3.2078]
[1756356283228,1.53283929,4567.3,4567.2,3.5149]
[1756356283429,1.53283929,4567.3,4567.2,3.2078]
[1756356283630,1.53283929,4567.3,4566.8,0.3071]
[1756356283631,0.7007,4567.2,4566.8,0.3071]
[1756356283827,1.2779,4566.9,4566.8,0.9549]
[1756356284024,1.45954306,4566.9,4566.8,1.6408]
[1756356284629,0.5772,4566.3,4566.2,3.2078]
[1756356284833,21.72754306,4566.3,4566.2,4.8486]
[1756356285034,21.72754306,4566.3,4566.2,3.9774]
[1756356285326,21.72754306,4566.3,4566.2,3.5149]
[1756356286034,21.80064306,4566.3,4566.2,3.2078]
[1756356286232,21.72754306,4566.3,4566.2,3.9774]
[1756356286838,21.72754306,4566.3,4566.2,3.7]
[1756356287036,21.80064306,4566.3,4566.2,3.2078]
[1756356287333,21.72754306,4566.3,4566.2,3.5149]
[1756356287741,0.5772,4565.8,4565.7,3.5149]
[1756356287930,1.45954306,4565.8,4565.7,3.5149]
[1756356288124,1.53264306,4565.8,4565.7,0.3071]
[1756356288437,21.74554306,4565.8,4565.7,1.6408]
[1756356289236,21.74654306,4565.8,4565.7,1.6408]
[1756356289430,21.74654306,4565.8,4565.7,0.4922]
[1756356289632,21.74654306,4565.8,4565.7,0.3071]
[1756356290032,21.74654306,4565.8,4565.1,3.2078]
[1756356290235,1.2779,4565.2,4565.1,4.8486]
[1756356290434,21.5619,4565.2,4565.1,4.8486]
[1756356291244,21.74307995,4565.2,4565.1,4.8486]
[1756356291538,1.45907995,4565.2,4565.1,4.8486]
[1756356291730,0.18117995,4565.2,4565.1,4.8486]
[1756356291936,7.953,4565.2,4565.1,8.78886]
[1756356292137,7.953,4565.2,4565.1,9.25266]
[1756356292636,0.7155,4566.0,4565.9,1.6506]
[1756356292637,0.4482,4566.0,4565.9,1.6506]
[1756356292838,21.76550069,4566.0,4565.9,1.6506]
[1756356293335,21.76550069,4566.0,4565.9,0.2941]
[1756356293743,21.76550069,4566.0,4565.9,0.4873]
[1756356293942,1.46344174,4566.0,4565.9,0.4873]
[1756356294143,21.78944174,4566.0,4565.9,0.9511]
[1756356294442,1.46344174,4566.0,4565.9,0.9511]
[1756356294643,21.78644174,4566.0,4565.9,0.9511]
[1756356294844,1.46344174,4566.0,4565.9,1.6506]
[1756356295141,20.68894174,4566.0,4565.9,1.6506]
[1756356295339,0.18104174,4566.0,4565.9,1.6506]
[1756356295545,20.324,4566.2,4566.1,0.657]
[1756356295744,20.50499556,4566.2,4566.1,4.8584]
[1756356296740,21.66869556,4566.2,4566.1,4.8584]
[1756356296948,21.78739556,4566.2,4566.1,1.6506]
[1756356297836,20.50499556,4566.2,4566.1,1.6506]
[1756356298344,21.79939556,4566.2,4566.1,1.6506]
[1756356298642,21.79939556,4566.2,4566.1,0.2941]
[1756356298842,0.5669,4565.7,4565.6,1.05121]
[1756356299146,21.6134,4565.7,4565.6,2.04481]
[1756356299447,21.79633057,4565.7,4565.6,1.6506]
[1756356299838,21.79633057,4565.7,4565.6,0.9511]
[1756356300145,21.79633057,4565.7,4565.6,0.2941]
[1756356300444,1.46533057,4565.7,4565.6,0.2941]
[1756356300644,20.51293057,4565.7,4565.6,1.6506]
[1756356301144,21.79533057,4565.7,4565.6,0.9511]
[1756356301739,21.79533057,4565.7,4565.6,0.4873]
[1756356302235,21.79533057,4565.7,4565.6,0.2941]
[1756356302440,1.2824,4564.8,4564.7,0.2941]
[1756356302743,21.80233057,4564.8,4564.7,1.6506]
[1756356303046,20.51860501,4564.8,4564.7,1.6506]
[1756356303247,0.18258235,4564.8,4564.7,4.9667]
[1756356303546,20.344,4565.3,4565.2,1.2294]
[1756356303741,20.344,4565.3,4565.2,4.8584]
[1756356303942,20.344,4565.3,4565.2,5.25265]
[1756356304346,20.344,4565.3,4565.2,4.8584]
[1756356304746,20.5309,4565.3,4565.2,4.8584]
[1756356304947,20.5309,4565.3,4565.2,3.2078]
[1756356304948,21.9531,4565.3,4565.2,3.2078]
[1756356305247,20.34,4565.3,4565.2,7.43309499]
[1756356306446,0.4779,4565.7,4565.6,0.657]
[1756356306648,0.6665,4565.7,4565.6,2.04482]
[1756356306842,21.0035,4565.7,4565.6,1.6506]
[1756356307043,21.6893,4565.7,4565.6,1.6506]
[1756356307246,21.9461,4565.7,4565.6,0.2941]
[1756356307646,20.9738,4565.7,4565.2,6.48199499]
[1756356307849,0.6368,4565.4,4565.3,0.4873]
[1756356308050,1.3523,4565.4,4565.3,1.6506]
[1756356308353,1.3523,4565.4,4565.3,0.9511]
[1756356308548,0.9724,4565.3,4565.2,5.78249499]
[1756356308754,1.6092,4565.3,4565.2,5.78249499]
[1756356309146,1.6092,4565.3,4565.2,2.57469499]
[1756356309552,21.6893,4565.3,4565.2,4.22529499]
[1756356309751,1.3523,4565.3,4565.2,4.22529499]
[1756356310046,12.5903,4565.3,4565.2,7.43309499]
[1756356310251,0.6368,4565.3,4565.2,7.43309499]
[1756356310451,9.4238,4565.3,4565.2,7.43309499]
[1756356311240,0.6368,4565.3,4565.2,7.43309499]
[1756356311453,8.9469,4565.3,4565.2,7.43309499]
[1756356311854,1.3523,4565.7,4565.6,2.04482]
[1756356312056,18.0063,4565.7,4565.6,2.04482]
[1756356312855,21.6893,4565.7,4565.6,2.04482]
[1756356313351,1.3523,4565.7,4565.6,2.04482]
[1756356313550,20.5199,4565.7,4565.6,2.04482]
[1756356313751,0.1869,4565.7,4565.6,2.04482]
[1756356313947,1.3523,4566.0,4565.9,1.05119]
[1756356314149,1.3523,4566.0,4565.9,2.04479]
[1756356314150,21.6853,4566.0,4565.9,2.04479]
[1756356314459,21.6843,4566.0,4565.9,2.04479]
[1756356315454,1.3523,4566.0,4565.9,4.61948499]
[1756356315650,21.6763,4566.0,4565.9,4.61948499]
[1756356318459,20.9638,4566.0,4565.9,4.61948499]
[1756356318860,32.8883,4566.4,4566.3,0.657]
[1756356319053,53.2063,4566.4,4566.3,1.6506]
[1756356319455,53.2063,4566.4,4566.3,0.9511]
[1756356319749,53.4632,4566.4,4566.3,0.4873]
[1756356319950,1.6092,4566.0,4565.9,2.96888499]
[1756356320157,21.9232,4566.0,4565.9,2.96888499]
[1756356320560,21.9232,4566.0,4565.9,2.04479]
[1756356320561,20.5029,4566.0,4565.9,2.04479]
[1756356320763,32.8883,4566.4,4566.3,1.34526]
[1756356320958,53.2053,4566.4,4566.3,2.04476]
[1756356321761,53.4628,4566.4,4566.3,0.2941]
[1756356322464,53.2053,4566.4,4566.3,1.6652]
[1756356322765,1.3523,4566.4,4566.3,1.6652]
[1756356322962,21.6643,4566.4,4566.3,1.6652]
[1756356323464,21.6643,4566.4,4566.3,0.972]
[1756356324063,21.6643,4566.4,4566.3,1.6652]
[1756356324359,1.3523,4566.4,4566.3,1.6652]
[1756356324760,0.7181,4567.1,4567.0,1.457]
[1756356325062,21.6925,4567.1,4567.0,1.6567]
[1756356325359,1.3905,4567.1,4567.0,4.23139499]
[1756356325664,21.6925,4567.6,4567.5,1.3574]
[1756356326757,21.6925,4567.6,4567.5,1.6567]
[1756356327457,20.9744,4567.6,4567.5,1.6567]
[1756356327860,20.7735,4567.6,4567.5,1.6567]
[1756356328157,3.2078,4568.5,4567.5,1.6567]
[1756356328158,3.9259,4568.5,4568.4,0.39398]
[1756356328365,24.8993,4568.5,4568.4,0.67958]
[1756356328564,24.8993,4568.5,4568.4,0.87928]
[1756356328966,25.1568,4568.5,4568.4,0.87928]
[1756356329268,24.6026,4568.5,4568.2,0.67959]
[1756356329462,1.648,4568.3,4568.2,0.67959]
[1756356330268,1.648,4568.3,4568.2,2.86029499]
[1756356330663,1.3905,4568.3,4568.2,3.53819499]
[1756356330868,1.3905,4568.3,4568.2,4.23139499]
[1756356331369,20.288,4568.5,4568.4,1.6567]
[1756356331559,21.0993,4568.5,4568.4,1.6567]
[1756356331764,21.6785,4568.5,4568.4,1.6567]
[1756356332169,21.936,4568.5,4568.4,0.9635]
[1756356332366,0.9756,4568.4,4568.3,3.2078]
[1756356332670,1.648,4568.4,4568.3,3.2078]
[1756356334167,1.648,4568.4,4568.3,3.6931]
[1756356335672,1.648,4568.4,4568.3,3.9667]
[1756356335964,1.3905,4568.4,4568.3,4.8645]
[1756356336174,21.6615,4568.4,4568.3,4.8645]
[1756356336369,20.46,4568.4,4568.3,4.8645]
[1756356337372,21.6615,4568.4,4568.3,4.8645]
[1756356338765,21.6615,4568.4,4568.3,4.4706]
[1756356339168,21.6615,4568.4,4568.3,4.8645]
[1756356339677,21.919,4568.4,4568.3,3.6931]
[1756356339873,21.919,4568.4,4568.3,3.4934]
[1756356340570,21.919,4568.4,4568.3,3.6931]
[1756356342171,26.1379,4568.4,4568.3,2.7804]
[1756356342369,0.2967,4568.3,4567.8,3.60182]
[1756356342567,0.2967,4569.0,4568.0,0.2856]
[1756356342772,0.4857,4568.1,4568.0,1.6567]
[1756356342970,20.7347,4568.1,4568.0,2.05071]
[1756356343180,20.438,4568.1,4567.8,3.4934]
[1756356343478,0.189,4567.9,4567.8,3.88743]
[1756356343673,0.4857,4567.9,4567.8,3.4934]
[1756356344077,0.4857,4567.9,4567.8,3.6931]
[1756356344481,0.4857,4567.9,4567.8,3.9667]
[1756356345075,0.4857,4567.9,4567.8,3.4934]
[1756356345276,0.4857,4567.9,4567.4,0.3939]
[1756356345277,0.4857,4567.9,4567.4,0.78796]
[1756356345480,0.4857,4567.6,4567.5,0.67965]
[1756356345681,0.4857,4567.6,4567.5,2.05075]
[1756356345874,0.2857,4567.6,4567.5,2.05075]
[1756356346076,0.4747,4567.6,4567.5,2.05075]
[1756356347176,20.242,4567.8,4567.6,0.39404]
[1756356347479,20.431,4567.8,4567.7,1.0582]
[1756356347882,20.7076,4567.8,4567.7,1.6567]
[1756356348083,20.7076,4567.8,4567.7,1.2628]
[1756356348780,20.7076,4567.8,4567.7,0.2856]
[1756356349176,20.242,4567.8,4567.7,1.6567]
[1756356349376,20.416,4568.2,4568.1,2.0507]
[1756356350282,31.545,4569.1,4568.6,0.4733]
[1756356350283,0.2766,4568.7,4568.6,0.4733]
[1756356350475,20.7006,4568.7,4568.6,1.6567]
[1756356352887,20.7006,4568.7,4568.6,0.2856]
[1756356355081,20.7006,4568.7,4568.6,1.6502]
[1756356355777,20.7006,4568.7,4568.3,3.2078]
[1756356355982,0.4782,4568.4,4568.3,3.2078]
[1756356356182,20.7002,4568.4,4568.3,3.2078]
[1756356356384,20.7002,4568.4,4568.3,3.5033]
[1756356357180,20.7002,4568.4,4568.3,3.9573]
[1756356357587,20.7002,4568.4,4568.3,3.6902]
[1756356357786,20.7002,4568.4,4568.3,3.2078]
[1756356358284,20.4238,4568.4,4567.9,0.4669]
[1756356358482,0.2018,4568.1,4567.8,3.2078]
[1756356358686,20.6992,4568.0,4567.9,0.2955]
[1756356358888,20.6992,4568.0,4567.9,0.7495]
[1756356359181,20.6992,4568.0,4567.9,1.6601]
[1756356359386,20.221,4568.0,4567.9,1.6601]
[1756356359890,20.221,4568.0,4567.9,4.23479499]
[1756356360284,0.2764,4568.8,4568.0,1.0071]
[1756356360493,0.4782,4568.8,4568.7,1.6601]
[1756356360685,20.6992,4568.8,4568.7,0.2955]
[1756356360886,20.64168001,4568.8,4568.0,0.39401]
[1756356361087,20.64168001,4568.8,4567.9,3.26421499]
[1756356361088,0.4782,4568.0,4567.9,3.26421499]
[1756356361389,20.6992,4568.0,4567.9,3.26421499]
[1756356361588,20.6992,4568.0,4567.9,2.87019499]
[1756356361886,20.6992,4568.0,4567.9,3.32419499]
[1756356362188,20.6992,4568.0,4567.9,4.23479499]
[1756356362687,20.6992,4568.0,4567.9,3.32419499]
[1756356362888,20.6992,4568.0,4567.9,3.80319499]
[1756356363190,20.6992,4568.0,4567.9,3.52319499]
[1756356363385,20.6992,4568.0,4567.9,2.87019499]
[1756356363794,20.6992,4568.0,4567.9,4.23479499]
[1756356365883,0.4782,4568.0,4567.9,4.23479499]
[1756356367289,0.4782,4568.8,4568.7,2.05405]
[1756356367494,20.6992,4568.8,4568.7,1.6601]
[1756356367898,20.6992,4568.8,4568.7,0.9485]
[1756356368097,20.6992,4568.8,4568.7,0.2955]
[1756356368797,20.6992,4568.8,4568.4,3.4878]
[1756356368798,20.6992,4568.8,4568.4,3.2078]
[1756356368988,0.2018,4568.1,4568.0,0.2955]
[1756356369191,20.6972,4568.1,4568.0,0.2955]
[1756356370390,20.6972,4568.1,4568.0,2.57469499]
[1756356373295,26.28724564,4568.1,4568.0,2.57469499]
[1756356373497,26.53392005,4568.1,4566.8,0.5626]
[1756356373689,1.37113564,4567.3,4566.8,0.2955]
[1756356373888,20.22,4567.2,4566.8,0.2955]
[1756356374095,20.22,4567.2,4566.6,0.2955]
[1756356374292,3.2078,4567.4,4566.7,0.2955]
[1756356374598,3.2078,4567.4,4566.9,0.5755]
[1756356374599,20.40530982,4567.3,4566.9,0.5755]
[1756356374899,0.18430982,4567.2,4566.9,0.2955]
[1756356375091,0.18430982,4567.1,4566.9,0.2955]
[1756356375298,0.18430982,4567.0,4566.9,0.2955]
[1756356375993,20.40530982,4567.0,4566.9,0.2955]
[1756356376595,20.40530982,4567.0,4566.9,2.87019499]
[1756356377296,20.40530982,4567.0,4566.9,2.57469499]
[1756356377902,24.62426982,4567.0,4566.9,2.57469499]
[1756356378093,24.62426982,4567.0,4565.8,3.5033]
[1756356378293,4.57893564,4566.5,4565.8,3.6902]
[1756356378494,4.57893564,4566.5,4565.8,3.5033]
[1756356378495,20.40630982,4566.4,4565.8,3.5033]
[1756356378694,0.18430982,4566.3,4566.2,1.6601]
[1756356378893,0.18430982,4566.3,4566.2,0.39417]
[1756356379194,3.2078,4565.9,4562.9,0.19937051]
[1756356379392,3.2078,4565.9,4562.8,2.71872878]
[1756356379393,1.37113564,4563.1,4562.8,0.2955]
[1756356379597,3.2078,4562.9,4562.7,0.17349001]
[1756356379898,0.1839913,4562.8,4562.2,0.11556885]
[1756356380193,3.22,4563.0,4562.0,0.2955]
[1756356380194,3.2078,4562.3,4562.0,0.2955]
[1756356380391,0.1645,4562.1,4561.6,0.2955]
[1756356380598,3.3723,4561.7,4561.6,0.2955]
[1756356380798,24.4792913,4561.7,4561.6,0.2955]
[1756356381993,3.3917913,4561.7,4561.6,5.0278]
[1756356382189,3.2078,4561.7,4561.6,5.0278]
[1756356382394,4.285,4562.3,4561.8,1.0362]
[1756356382595,0.2068762,4562.2,4562.1,0.7331]
[1756356382794,0.2068762,4562.2,4562.1,1.0362]
[1756356383199,0.3732762,4562.2,4562.1,0.607]
[1756356383400,0.3732762,4562.2,4562.1,0.3039]
[1756356383796,0.2068762,4562.2,4562.1,1.0362]
[1756356384799,3.2078,4562.5,4562.2,0.39451]
[1756356385000,3.2078,4562.5,4562.4,1.1268]
[1756356385203,3.2078,4562.5,4562.4,5.4307]
[1756356385798,3.2078,4563.3,4563.0,1.0362]
[1756356385997,20.92,4563.6,4563.1,1.0362]
[1756356386299,0.19581891,4563.5,4563.1,1.0362]
[1756356386602,20.92,4563.6,4563.1,1.0362]
[1756356386794,0.1649,4563.6,4563.2,0.3039]
[1756356386999,0.1649,4563.6,4563.1,0.607]
[1756356387199,0.1649,4563.6,4563.2,0.607]
[1756356387396,0.1649,4563.6,4563.0,0.39444]
[1756356387597,0.20708331,4563.5,4563.2,0.607]
[1756356387797,0.1649,4563.6,4562.8,3.2078]
[1756356388001,0.2070791,4563.5,4563.0,0.607]
[1756356388200,0.1649,4563.5,4562.9,0.39445]
[1756356388604,52.6239,4563.7,4563.2,0.3039]
[1756356388804,0.37194821,4563.6,4563.3,0.7323]
[1756356389007,0.20704821,4563.5,4563.2,0.3031]
[1756356389206,0.20704464,4563.4,4563.2,1.0362]
[1756356389401,52.452,4563.7,4563.2,1.0362]
[1756356389402,52.452,4563.7,4563.3,0.39441]
[1756356389600,0.20703228,4563.6,4563.4,0.3031]
[1756356389795,20.918,4563.7,4563.6,1.0362]
[1756356390000,21.12502708,4563.7,4563.6,1.0362]
[1756356391308,21.12502708,4563.7,4563.6,1.7014]
[1756356391511,0.20702708,4563.7,4563.6,1.7014]
[1756356392809,0.20702708,4563.7,4563.6,1.53700075]
[1756356393105,1.11292708,4563.7,4563.6,0.3039]
[1756356393313,1.11292708,4563.7,4563.6,0.4989]
[1756356393511,0.56342708,4563.7,4563.6,1.3983]
[1756356394601,21.43942708,4563.7,4563.6,1.3983]
[1756356394805,21.43942708,4563.7,4563.6,1.7014]
[1756356395006,21.43955657,4563.7,4563.6,1.7014]
[1756356395505,21.08315657,4563.7,4563.6,1.7014]
[1756356395802,0.20715657,4563.7,4563.6,1.7014]
[1756356398002,4.07249537,4565.3,4565.2,0.4648]
[1756356398003,0.6295,4565.3,4565.2,0.4648]
[1756356398303,0.8392,4565.0,4564.9,2.09568]
[1756356398509,1.1291,4565.0,4564.9,2.09568]
[1756356398710,0.5796,4565.0,4564.9,1.93133094]
[1756356398905,0.3957,4565.0,4564.9,1.93133094]
[1756356399106,0.5796,4565.0,4564.9,1.93133094]
[1756356399812,0.5796,4565.0,4564.9,1.7014]
[1756356400014,0.8392,4565.0,4564.9,1.7014]
[1756356400312,1.1291,4565.0,4564.9,4.27609499]
[1756356400508,0.3957,4565.0,4564.9,4.27609499]
[1756356401212,15.4793,4565.4,4564.9,4.27609499]
[1756356401412,0.8695,4565.3,4565.2,0.6652]
[1756356401609,1.4206,4565.3,4565.2,0.2698]
[1756356401909,0.4738,4565.2,4565.0,0.607]
[1756356402106,1.4206,4565.1,4565.0,1.0718]
[1756356402306,1.4206,4565.1,4565.0,1.2722]
[1756356402813,1.4206,4565.1,4565.0,1.7014]
[1756356403708,0.8392,4565.1,4565.0,1.7014]
[1756356403908,1.1291,4565.1,4565.0,1.7014]
[1756356404814,1.1291,4565.1,4565.0,1.53705542]
[1756356405316,1.1291,4565.1,4565.0,4.11175041]
[1756356407824,0.3957,4565.1,4565.0,4.11175041]
[1756356408233,0.8695,4565.1,4565.0,3.89810621]
[1756356408418,1.4206,4565.1,4565.0,3.89810621]
[1756356408824,1.1291,4565.1,4565.0,3.89810621]
[1756356410033,1.33523743,4565.1,4565.0,3.89810621]
[1756356410334,1.33523743,4565.1,4565.0,4.20120621]
[1756356410734,1.62673743,4565.1,4565.0,4.03686394]
[1756356410929,0.20613743,4565.1,4565.0,4.03686394]
[1756356412726,0.60183743,4565.1,4565.0,4.03686394]
[1756356413126,0.20613743,4565.1,4565.0,4.03686394]
[1756356414938,0.60033743,4565.1,4565.0,4.03686394]
[1756356415238,1.17753743,4565.1,4565.0,4.03686394]
[1756356415931,1.16751631,4565.1,4565.0,4.03686394]
[1756356416535,1.63501631,4565.1,4565.0,4.03686394]
[1756356416937,1.63501631,4565.1,4565.0,3.87252984]
[1756356418138,1.63501631,4565.1,4565.0,3.65889553]
[1756356418438,1.63501631,4565.1,4565.0,3.85149553]
[1756356419439,0.88291631,4565.1,4565.0,4.15259553]
[1756356420240,0.48871631,4565.1,4565.0,4.15259553]
[1756356420633,0.68021631,4565.1,4565.0,4.15259553]
[1756356420929,1.75331631,4565.1,4565.0,4.15259553]
[1756356421130,5.67066233,4565.1,4564.6,3.2078]
[1756356421337,2.93000935,4564.7,4564.6,3.2078]
[1756356421538,3.70241168,4564.7,4564.6,4.091]
[1756356421738,2.04460233,4564.7,4564.6,4.5672]
[1756356422042,0.88291631,4564.7,4564.6,4.8683]
[1756356422438,0.19611631,4564.7,4564.6,4.8683]
[1756356422643,14.714,4565.4,4564.6,5.59360935]
[1756356422840,15.1981,4565.4,4565.3,1.49616392]
[1756356423041,16.26239148,4565.4,4565.3,1.19506392]
[1756356423237,16.96509148,4565.4,4565.3,1.3594]
[1756356423642,16.26239148,4565.4,4565.3,1.3594]
[1756356423943,16.96509148,4565.4,4565.3,1.3594]
[1756356424142,15.97739148,4565.4,4565.3,1.3594]
[1756356424840,16.96509148,4565.4,4565.3,1.3594]
[1756356425045,15.97739148,4565.4,4565.3,1.3594]
[1756356425539,16.96509148,4565.4,4565.3,1.3594]
[1756356426045,16.54699148,4565.4,4565.3,1.3594]
[1756356426239,15.97739148,4565.4,4565.3,1.3594]
[1756356426439,0.57659148,4565.4,4565.3,5.5304]
[1756356426644,0.2926,4565.8,4565.7,1.75361]
[1756356427137,1.06172405,4565.8,4565.7,1.75361]
[1756356427344,3.2078,4566.3,4566.2,0.84967]
[1756356427345,0.2926,4566.3,4566.2,0.84967]
[1756356427535,0.2926,4566.3,4566.2,1.75357]
[1756356427738,0.87041108,4566.3,4566.2,1.92457]
[1756356428044,1.06191108,4566.3,4566.2,1.92457]
[1756356428244,1.26461108,4566.3,4566.2,1.3594]
[1756356428441,2.25231108,4566.3,4566.2,1.3594]
[1756356428748,1.83421108,4566.3,4566.2,1.3594]
[1756356428941,2.25231108,4566.3,4566.2,1.19509604]
[1756356429148,1.54961108,4566.3,4566.2,1.19509604]
[1756356429448,1.6745,4566.3,4566.2,1.19509604]
[1756356429845,1.6745,4566.3,4566.2,0.29059604]
[1756356430252,1.6745,4566.3,4565.9,0.4283]
[1756356430553,1.6745,4566.0,4565.9,0.8832]
[1756356430849,1.6745,4566.0,4565.9,1.3594]
[1756356432742,1.6745,4566.0,4565.9,3.93409499]
[1756356433145,1.6745,4566.0,4565.9,3.65049499]
[1756356433754,1.6745,4566.0,4565.9,3.93409499]
[1756356434052,0.6868,4566.3,4566.2,1.75357]
[1756356434242,1.2564,4566.3,4566.2,4.96137]
[1756356434442,1.6745,4566.3,4566.2,4.96137]
[1756356434947,0.6868,4566.3,4566.2,4.79707536]
[1756356435250,1.6745,4566.3,4566.2,7.37177035]
[1756356435446,1.6745,4566.3,4566.2,3.93409499]
[1756356436150,1.6745,4566.3,4566.2,2.57469499]
[1756356437043,5.8935,4566.3,4566.2,2.57469499]
[1756356437245,0.21901,4566.2,4564.0,0.17816129]